Cogmind - Beta 13 @@@ ROGUE MODE // 2024.03.03 @ 09:09:11 Player: TheSlyFawkes Result: Self-destructed Performance ------------- Evolutions (1) 500 Regions Visited (2) 400 Robots Destroyed (19) 95 Value Destroyed (431) 431 Prototype IDs (2) 40 Alien Tech Used (0) 0 Bonus (0) 0 TOTAL SCORE: 1466 Bonus ------- None Cogmind --------- Core Integrity 209/400 Matter 300/300 Energy 100/100 System Corruption 0% Temperature Cool (6) Movement Core (400) Ox7 Location -9/Materials Parts ------- > --- POWER (2) -------- (None) > --- PROPULSION (2) --- (None) > --- UTILITY (3) ------ Large Storage Unit Targeting Computer Weapon Shielding > --- WEAPON (2) ------- Hammer > --- INVENTORY (15) --- Improved Ion Engine Light Treads Aluminum Leg Aluminum Leg Large Storage Unit Huge Storage Unit Large Matter Pod (150) Sensor Array Assault Rifle Light Assault Rifle Heavy Assault Rifle Mining Laser Peak State ------------ > --- POWER ------------ Light Ion Engine > --- PROPULSION ------- Light Treads Improved Treads > --- UTILITY ---------- Large Storage Unit Targeting Computer Weapon Shielding > --- WEAPON ----------- Light Cannon Hammer > --- INVENTORY -------- Aluminum Leg Aluminum Leg Large Storage Unit Huge Storage Unit Large Matter Pod Sensor Array Weapon Shielding Assault Rifle Light Assault Rifle Mining Laser [Rating: 10] Favorites ----------- Power Light Ion Engine Engine Light Ion Engine Propulsion Light Treads Treads Light Treads Leg Aluminum Leg Wheel Wheel Utility Targeting Computer Device Sensor Array Storage Large Storage Unit Processor Targeting Computer Protection Weapon Shielding Weapon Light Cannon Energy Gun Medium Laser Ballistic Gun Assault Rifle Ballistic Cannon Light Cannon Special Weapon Mining Laser Impact Weapon Hammer Build | -11 -10 -9 ------- Run | Yrd Mat Mat Slots Evolved 2 | . . 2 Power 1 | . . 1 Propulsion . | . . . Utility 1 | . . 1 Weapon . | . . . Parts Attached 27 | 6 12 9 Power 3 | 1 . 2 Engine 3 | 1 . 2 Core . | . . . Reactor . | . . . Propulsion 9 | 2 4 3 Treads 5 | . 2 3 Leg 2 | . 2 . Wheel 2 | 2 . . Hover . | . . . Flight . | . . . Utility 8 | 1 4 3 Device 1 | . . 1 Storage 4 | 1 3 . Processor 1 | . 1 . Hackware . | . . . Protection 2 | . . 2 Artifact . | . . . Weapon 7 | 2 4 1 Energy Gun 2 | 1 1 . Energy Cannon . | . . . Ballistic Gun 1 | 1 . . Ballistic Cannon 2 | . 1 1 Launcher . | . . . Special Weapon 1 | . 1 . Impact Weapon 1 | . 1 . Slashing Weapon . | . . . Piercing Weapon . | . . . Special Melee Weapon . | . . . Unidentified Prototypes . | . . . Parts Lost 6 | . 1 5 Power 3 | . . 3 Propulsion 3 | . 1 2 Utility . | . . . Weapon . | . . . Highest Loss Streak 2 | . 1 2 To Critical Strikes . | . . . Average Slot Usage (%) 89 | . 97 79 Engine 12 | . 14 9 Treads 20 | . 20 20 Wheel 3 | . 5 . Storage 12 | . 14 11 Processor 11 | . 11 11 Protection 3 | . . 8 Energy Gun 7 | . 12 . Ballistic Gun 2 | . 4 . Ballistic Cannon 9 | . 9 8 Impact Weapon 4 | . . 11 Naked Turns . | . . . Heaviest Build 31 | 12 28 31 Greatest Support 43 | 26 40 43 Greatest Overweight (x) 1 | 1 1 1 Average Overweight (x) . | . . . Largest Inventory Capacity 25 | 8 25 15 Average Capacity 13 | 7 12 15 Most Carried 14 | 6 14 13 Average Carried 9 | 3 9 11 Final Capacity 15 | 8 15 15 Final Carried 13 | 6 13 12 Class Distribution -------------------- 100% | Mutant Dominant Class ---------------- Mutant | -10/Materials Mutant | -9/Materials Resources | -11 -10 -9 ----------- Run | Yrd Mat Mat Matter Collected 695 | 260 271 164 Remotely . | . . . Salvage Created 487 | . 259 228 Parts 40 | . 20 20 Haulers Intercepted . | . . . Recyclers Shooed . | . . . Parts Field Recycled . | . . . Retrieved Matter . | . . . Parts Self-Destructed . | . . . Prevented . | . . . Kills | -11 -10 -9 ------- Run | Yrd Mat Mat Combat Hostiles Destroyed 13 | . 5 8 Melee 7 | . . 7 Guns 3 | . 3 . Cannons 2 | . 2 . Classes Destroyed 7 | . 3 4 Worker 1 | . . 1 Tunneler 1 | . . 1 Operator 1 | . 1 . Watcher 3 | . 2 1 Swarmer 6 | . . 6 Grunt 5 | . 5 . Sentry 2 | . . 2 Best Kill Streak 2 | . 2 2 Combat Bots Only 2 | . 2 2 Max Kills in Single Turn 1 | . 1 1 Gunslinging . | . . . Exploded . | . . . Melee 1 | . . 1 Uniques/NPCs Destroyed . | . . . Combat | -11 -10 -9 -------- Run | Yrd Mat Mat Hostile Shots Fired 161 | . 21 140 Missed 36 | . 3 33 Damage Taken 1396 | . 258 1138 Core 238 | . 47 191 Absorbed by Shields . | . . . Redirected to Shielding 49 | . . 49 Regen/Repaired (Parts) 168 | . . 168 Core Remaining (%) 90 | 100 81 . Volleys Fired 27 | . 25 2 Largest 2 | . 2 1 Hottest 85 | . 85 35 Shots Fired 52 | . 50 2 Gun 30 | . 30 . Cannon 22 | . 20 2 Launcher . | . . . Special . | . . . Kinetic 27 | . 25 2 Thermal 25 | . 25 . Explosive . | . . . Electromagnetic . | . . . Robot Hit Streak 7 | . 7 4 Robot Miss Streak 2 | . 2 1 Penetration Max . | . . . Secondary Targets . | . . . Shots Hit Robots 70 | . 37 33 Core Hits 22 | . 15 7 Critical Kills 3 | . . 3 Critical Parts Destroyed . | . . . Critical Strikes 5 | . 2 3 Burn 2 | . 2 . Smash 3 | . . 3 Melee Attacks 47 | . . 47 Impact 47 | . . 47 Slashing . | . . . Piercing . | . . . Sneak Attacks 2 | . . 2 Combat Hostiles . | . . . Follow-up Attacks . | . . . Damage Inflicted 1351 | . 553 798 Guns 275 | . 275 . Cannons 283 | . 266 17 Explosions . | . . . Melee 781 | . . 781 Ramming 12 | . 12 . Kinetic 333 | . 316 17 Thermal 225 | . 225 . Explosive . | . . . Electromagnetic . | . . . Impact 781 | . . 781 Slashing . | . . . Piercing . | . . . Highest Corruption . | . . . Average Corruption . | . . . Corruption Purged . | . . . Corruption Blocked . | . . . Overload Shots . | . . . Overflow Damage 95 | . . 95 Projectiles . | . . . Explosions . | . . . Melee 95 | . . 95 Knockbacks 6 | . 6 . Impact . | . . . Kinetic 6 | . 6 . Secondary . | . . . Self-Inflicted Damage . | . . . Shots . | . . . Rammed 3 | . 3 . Targets Rammed 3 | . 3 . Kicked . | . . . Crushed . | . . . Highest Temperature 285 | . 285 6 Average Temperature 80 | . 81 6 Received Heat Transfer 414 | . 165 249 Siege Activations . | . . . Robots Corrupted . | . . . Combat Hostiles . | . . . Parts Fried 4 | . . 4 Impact Corruptions 7 | . . 7 Robots Melted . | . . . Combat Hostiles . | . . . Parts Melted . | . . . Heat Transferred 814 | . 814 . Parts Sabotaged . | . . . Parts Stolen . | . . . Parts Stripped . | . . . Power Chain Reactions . | . . . Alert | -11 -10 -9 ------- Run | Yrd Mat Mat Peak Influence 176 | . 176 130 Initial 10 | . . 10 Average 58 | . 57 63 Maximum Alert Level . | . . . Low Security (%) 100 | 100 100 100 Level 1 . | . . . Level 2 . | . . . Level 3 . | . . . Level 4 . | . . . Level 5 . | . . . High Security . | . . . Max Security . | . . . Squads Dispatched 2 | . 1 1 Investigation 1 | . 1 . Extermination . | . . . Reinforcement 1 | . . 1 Assault . | . . . Garrison . | . . . Intercept . | . . . Searches Triggered . | . . . Construction Impeded . | . . . Haulers Reinforced . | . . . Active Scanning Responses . | . . . Cargo Convoy Interrupts . | . . . Stealth | -11 -10 -9 --------- Run | Yrd Mat Mat Distress Signals 2 | . . 2 Communications Jammed . | . . . Distress Signals . | . . . Times Spotted 32 | . 13 19 Peak Tracking Total 6 | . 2 6 Tactical Retreats 2 | . 2 . Traps | -11 -10 -9 ------- Run | Yrd Mat Mat Traps Triggered 1 | . 1 . Indirectly . | . . . Trap Hack Attempts . | . . . Triggered . | . . . Disarmed . | . . . Reprogrammed . | . . . Reused . | . . . Traps Extracted . | . . . Installed . | . . . Triggered . | . . . Machines | -11 -10 -9 ---------- Run | Yrd Mat Mat Machines Disabled . | . . . Max in Single Turn . | . . . Machines Repaired . | . . . Machines Dismantled . | . . . Machines Sabotaged . | . . . Overloaded Fab Kills . | . . . Hacking | -11 -10 -9 --------- Run | Yrd Mat Mat Machines Accessed 11 | . 8 3 Terminals 9 | . 7 2 Fabricators . | . . . Repair Stations 1 | . . 1 Recycling Units 1 | . 1 . Scanalyzers . | . . . Garrison Access . | . . . Total Hacks 38 | . 27 11 Successful 23 | . 16 7 Failed 15 | . 11 4 Catastrophic . | . . . Database Lockouts . | . . . Manual 16 | . 12 4 Terminals 30 | . 24 6 Fabricators . | . . . Repair Stations 5 | . . 5 Recycling Units 3 | . 3 . Scanalyzers . | . . . Garrison Access . | . . . Terminal Hacks 7 | . 6 1 Record 1 | . 1 . Prototype ID Bank 1 | . . 1 Branch Access Points 1 | . 1 . Emergency Access Points 1 | . 1 . Alert Level 2 | . 2 . Reinforcement Status 1 | . 1 . Fabricator Hacks . | . . . Repair Station Hacks 4 | . . 4 Scan Component 2 | . . 2 Repair 2 | . . 2 Recycling Unit Hacks 1 | . 1 . Retrieve Components 1 | . 1 . Scanalyzer . | . . . Garrison Access Hacks . | . . . Unauthorized Hacks 11 | . 9 2 Terminals 10 | . 8 2 Assimilate 1 | . 1 . Botnet 8 | . 6 2 Operators 1 | . 1 . Fabricators . | . . . Repair Stations . | . . . Recycling Units 1 | . 1 . Mask 1 | . 1 . Scanalyzers . | . . . Garrison Access . | . . . Data Cores Recovered 1 | . 1 . Used . | . . . Hacking Detections 8 | . 6 2 Full Trace Events . | . . . Feedback Events . | . . . Feedback Blocked . | . . . Robot Schematics Acquired . | . . . Robots Built . | . . . Authchips . | . . . Time . | . . . Total Robot Build Rating . | . . . Part Schematics Acquired . | . . . Parts Built . | . . . Authchips . | . . . Time . | . . . Total Part Build Rating . | . . . Parts Repaired 2 | . . 2 Time 52 | . . 52 Parts Recycled . | . . . Recycled Matter . | . . . Retrieved Matter . | . . . Retrieved Components 9 | . 9 . Parts Scanalyzed . | . . . Part Schematics Acquired . | . . . Parts Damaged . | . . . Bothacking | -11 -10 -9 ------------ Run | Yrd Mat Mat Used RIF Installer . | . . . Robots Hacked . | . . . Non-combat . | . . . Combat . | . . . Robot Hacks Applied . | . . . Relay Couplers Released . | . . . Fabnet Peak Effective % . | . . . Robots Rewired . | . . . Allies Hacked . | . . . Hacks Repelled . | . . . Allies | -11 -10 -9 -------- Run | Yrd Mat Mat Total Allies . | . . . Largest Group . | . . . Highest-Rated Group . | . . . Highest-Rated Ally . | . . . Total Orders . | . . . Ally Attacks . | . . . Total Damage . | . . . Kills . | . . . Allies Corrupted . | . . . Allies Melted . | . . . Intel | -11 -10 -9 ------- Run | Yrd Mat Mat Robot Analysis Total . | . . . Derelict Logs Recovered . | . . . Drone Launches . | . . . Drone Recoveries . | . . . Exploration | -11 -10 -9 ------------- Run | Yrd Mat Mat Turns Passed 1690 | 58 944 688 Spaces Moved 905 | 49 590 266 Core 3 | 3 . . Treads 632 | . 366 266 Legs 45 | . 45 . Wheels 225 | 46 179 . Hover . | . . . Flight . | . . . Fastest Speed 50 | 50 90 160 Average Speed 140 | 87 135 160 Slowest Speed 240 | 100 160 240 Overloaded Moves . | . . . Propulsion Burnouts . | . . . Robots Hopped . | . . . Cave-ins Triggered . | . . . Exploration Rate (%) 39 | 4 94 21 Regions Visited 2 Branch Regions . Pre-discovered Areas . | . . . Known Exits Taken . | . . . Unknown Exits Taken 2 | 1 1 . Scrap Searched . | . . . Spaces Dug . | . . . Terrain Destroyed . | . . . Melee . | . . . Projectile . | . . . AOE . | . . . Terrain Rammed . | . . . Walls Destroyed . | . . . Machines Disabled . | . . . Actions | -11 -10 -9 --------- Run | Yrd Mat Mat Total 1181 | 60 679 442 Wait 141 | . 35 106 Move 903 | 48 589 266 Hop . | . . . Pick Up 21 | 6 9 6 Fast Attach 12 | 6 3 3 Attach 5 | . 1 4 Detach 2 | . 1 1 Swap 10 | . 8 2 Drop 10 | . 5 5 Fire 27 | . 25 2 Melee 47 | . . 47 Ram . | . . . Kick . | . . . Crush 3 | . 3 . Escape Stasis . | . . . Rewire . | . . . Trap . | . . . Miscellaneous . | . . . Route ------- -11/Scrapyard -10/Materials (discovered 5 exits: *Mat x3 / *Min x2) -9/Materials History --------- Turn | Location | Event 25 | -11/Scrapyard | Discovered new exit (range 15) 59 | -11/Scrapyard | Entered Materials 132 | -10/Materials | Identified exit to Mines 284 | -10/Materials | Discovered new exit (range 12) 311 | -10/Materials | Build established: Mutant 675 | -10/Materials | Discovered new exit (range 16) 849 | -10/Materials | Discovered new exit (range 12) 1003 | -10/Materials | Entered another Materials area 1003 | -9/Materials | Evolved 2 slots: Power x1, Utility x1 1108 | -9/Materials | Repaired Lgt. Treads 1242 | -9/Materials | Repaired Lgt. Treads 1691 | -9/Materials | Self-destructed Last Messages --------------- Acquired Lgt. Treads. Acquired Imp. Ion Engine. Acquired Hvy. Assault Rifle. Sneak attack on T-07 Excavator. Destroyed Wheel. T-07 Excavator system corrupted by crushing effect. T-07 Excavator system terminally corrupted. Wheel fried. Imp. Terrain Scanner fried. Mining Laser fried. Lgt. Ion Engine fried. K-01 Serf collects debris. C-30 ARC bursts open, deploying its payload. L-31 Rogue unfolds itself. G-34 Mercenary unfolds itself. Lgt. Treads destroyed. Lgt. Ion Engine destroyed. Imp. Treads severed. [Achievement: Back For More] Map ----- +----------------------------------------------------+ | ?????????????????????????????????????????# """ " | | ?????????????????????????????????????????#^ """ = | | ?????????????????????????????????????????# ^""" ^" | | ????????????????????????????????????????## ^ | | ????????????????????????????????????????# ^ ! ^ | | ??????????????????????????????########### | | ????????????????????????????? =% | | ????????????????????????????? | | ????????????????????????????? | | ???????????????????????????????########## % ##### | | ???????????????????????????????? ?? # # | | ???????????????????????????????# ?"" # # | | ???????????????????????????????# """ # + | | ????????????"??????????????????# """ # # | | ??????????? ##???????????????# # # | | ??????????? ???????????????# """ # # | | ??????????? ??????????????# """ # ####+ | | ????????????? ?????????????# """ # #??# | | ??????????????# ????????????# !]% # #??# | | ?????????????## ###+#############+#### #### | | ?????????????# % [! | | ?????????????# | | ???????????+ % | | ????????????????##### ##############+#########+# | | ????????????????????# # g #?# #??# | | ????????????????????# #@""""" #?# #??# | | ????????????????????+ %gl""""" #?# #??# | | ????????????????????# # """"" #?# #??# | | ????????????????????# # #?# #??# | | ????????????????????# # "" "" #?# #??# | | ????????????????????# # ""S"" #?########??##### | | ????????????????????# # """" #???????????????? | | ????????????????????# # #???????????????? | | ????????????????????# ##########???????????????? | | ????????????????????# ?????????????????????????? | | ????????????????????# ?????????????????????????? | | ????????????????????# ?????????????????????????? | | ????????????????????# ?????????????????????????? | | ????????????????????# ?????????????????????????? | | ????????????????????# ?????????????????????????? | | ????????????????????? ?????????????????????????? | | ?????????????????????????????????????????????????? | | ?????????????????????????????????????????????????? | | ?????????????????????????????????????????????????? | | ?????????????????????????????????????????????????? | | ?????????????????????????????????????????????????? | | ?????????????????????????????????????????????????? | | ?????????????????????????????????????????????????? | | ?????????????????????????????????????????????????? | | ?????????????????????????????????????????????????? | +----------------------------------------------------+ Best States ------------- Heat Dissipation 28 Energy Generation 10 Energy Capacity 250 Matter Stores 300 Matter Capacity 300 Sight Range 16 Terrain Scan Density 10 Weapon Shielding 33 Evasion (%) 55 Targeting Accuracy 5 Recoil Reduction 2 Item Schematics ----------------- None Robot Schematics ------------------ None Fabricated ------------ Nothing Alien Tech Used ----------------- None Achievements -------------- Back For More Challenges ------------ None Game ------ Seed HybridActiveStick Manual? 0 Play Time 00:18:29 Cumulative 33.4 hours Start 2024.03.03 @ 08:51:07 End 2024.03.03 @ 09:09:11 Sessions 1 Manual Loads 0 Difficulty Rogue Special Mode None Game No. 50 Rogue 49 Adventurer 1 Explorer 0 Win Type - Total 0 Types 0/0/0/0/0/0/0/0/0 Lore% 20 Gallery% 26 Achievement% 29 Wizard Run 0 Options --------- Layout 1 ASCII 0 Keyboard 0 Movement Numpad Keybinds 0 Fullscreen 1 Font 24/Smallcaps Map View 50x35 Zoom Use 0% Tactical HUD 0 Map Filters NONE Filters NONE Steam 1 RUN: a3940e40-2a0f-4cd5-a237-e4f0ce721a83